bitfinex/quotes_BTCUSD_20250515
["timestamp","ask_amount","ask_price","bid_price","bid_amount"]
[1747345293592,1e-08,103130.0,103120.0,1.45939201]
[1747345294633,1e-08,103130.0,103120.0,1.47393286]
[1747345295252,1e-08,103130.0,103120.0,1.81282359]
[1747345296124,0.31007982,103170.0,103160.0,0.21326047]
[1747345296334,0.30086691,103170.0,103160.0,0.21326047]
[1747345296540,0.30086691,103170.0,103160.0,0.22295358]
[1747345296746,0.32605965,103170.0,103160.0,0.62290828]
[1747345296959,0.30667483,103170.0,103160.0,0.40605827]
[1747345297168,0.31857483,103170.0,103160.0,0.40605827]
[1747345297320,0.32757483,103170.0,103160.0,0.40705827]
[1747345299177,0.25011925,103170.0,103160.0,0.40705827]
[1747345299731,0.25011925,103170.0,103160.0,0.00705827]
[1747345300243,0.25011925,103170.0,103160.0,0.40705827]
[1747345300852,0.25011925,103170.0,103160.0,0.401]
[1747345301064,0.25011925,103170.0,103160.0,0.59487359]
[1747345301757,0.25011925,103170.0,103160.0,0.60456726]
[1747345302391,0.25011925,103170.0,103160.0,0.61426084]
[1747345302604,0.25011925,103170.0,103160.0,0.21426084]
[1747345303017,0.25011925,103170.0,103160.0,0.61426084]
[1747345303232,0.24042661,103170.0,103160.0,0.61426084]
[1747345304350,0.22852661,103170.0,103160.0,0.61426084]
[1747345305596,0.21302661,103170.0,103160.0,0.61426084]
[1747345306019,0.21302661,103170.0,103160.0,0.21426084]
[1747345306447,0.21302661,103170.0,103160.0,0.22395433]
[1747345306650,0.21302661,103170.0,103160.0,0.62395433]
[1747345307087,0.21302661,103170.0,103160.0,0.61426084]
[1747345308519,0.21302661,103170.0,103160.0,0.60456726]
[1747345309527,0.21302661,103170.0,103160.0,0.20456726]
[1747345309927,0.21302661,103170.0,103160.0,0.60456726]
[1747345310705,0.21302661,103170.0,103160.0,0.6106253]
[1747345313031,0.21302661,103170.0,103160.0,0.40705804]
[1747345313479,0.65025023,103170.0,103160.0,0.00705804]
[1747345313688,1.18760235,103170.0,103160.0,0.00705804]
[1747345313908,1.26505793,103170.0,103160.0,0.00705804]
[1747345314131,1.26505793,103170.0,103110.0,0.19395049]
[1747345314132,6.30671281,103170.0,103110.0,0.19395049]
[1747345314349,0.21334319,103120.0,103110.0,0.30291469]
[1747345314627,0.21334319,103120.0,103110.0,0.71673401]
[1747345314839,0.21334319,103120.0,103110.0,0.7264321]
[1747345315275,0.21334319,103120.0,103110.0,0.40606044]
[1747345315276,0.39170613,103120.0,103110.0,0.40606044]
[1747345315492,0.40260613,103120.0,103110.0,0.40806044]
[1747345315728,0.41796756,103120.0,103110.0,0.40014356]
[1747345315932,0.40360613,103120.0,103110.0,0.40014356]
[1747345316141,0.40260613,103120.0,103110.0,0.00014356]
[1747345316496,0.40560613,103120.0,103110.0,0.00014356]
[1747345317018,0.84158046,103120.0,103110.0,0.00014356]
[1747345318241,0.50291553,103120.0,103110.0,0.00014356]
[1747345319196,0.69007553,103120.0,103110.0,0.00014356]
[1747345320678,0.70486731,103120.0,103110.0,0.00014356]
[1747345323027,0.71940816,103120.0,103110.0,0.00014356]
[1747345323678,0.71640816,103120.0,103110.0,0.00014356]
[1747345323892,0.71940816,103120.0,103110.0,0.00114356]
[1747345324534,0.72240816,103120.0,103110.0,0.00114356]
[1747345324738,0.72140816,103120.0,103110.0,0.00014356]
[1747345324952,0.72340816,103120.0,103110.0,0.00014356]
[1747345327783,0.71250816,103120.0,103110.0,0.00014356]
[1747345327991,0.71052816,103120.0,103110.0,0.00014356]
[1747345328215,0.33728816,103120.0,103110.0,0.00014356]
[1747345328424,0.52332816,103120.0,103110.0,0.00014356]
[1747345329276,0.15303567,103120.0,103110.0,0.22320516]
[1747345329494,0.15303567,103120.0,103110.0,0.24470763]
[1747345329495,0.04578822,103120.0,103110.0,0.24470763]
[1747345329679,0.23004033,103120.0,103110.0,0.23500944]
[1747345329899,0.007,103120.0,103110.0,0.59307009]
[1747345330368,0.007,103120.0,103110.0,0.25440516]
[1747345330577,0.007,103120.0,103110.0,0.69643959]
[1747345330783,0.007,103120.0,103110.0,1.37510452]
[1747345331628,0.005,103120.0,103110.0,1.77510452]
[1747345331848,0.01938951,103140.0,103130.0,0.25521835]
[1747345332029,0.01938951,103140.0,103130.0,0.44241835]
[1747345332228,0.0290845,103140.0,103130.0,0.44241835]
[1747345332435,0.23269086,103140.0,103130.0,0.44241835]
[1747345332613,0.23269086,103140.0,103130.0,0.84847734]
[1747345332812,0.23269086,103140.0,103130.0,0.8387815]
[1747345332993,0.23269086,103140.0,103130.0,0.84847734]
[1747345333369,0.23269086,103140.0,103130.0,0.84947734]
[1747345333667,0.23869086,103140.0,103130.0,0.84947734]
[1747345334489,0.23869086,103140.0,103130.0,0.84947743]
[1747345334705,0.24838623,103140.0,103130.0,0.84947752]
[1747345335007,0.24838623,103140.0,103130.0,0.8397815]
[1747345335685,0.24838707,103140.0,103130.0,0.8397815]
[1747345336308,0.24838707,103140.0,103130.0,0.83978159]
[1747345337584,0.23869227,103140.0,103130.0,0.62645899]
[1747345337810,0.2193021,103140.0,103130.0,0.62645899]
[1747345338625,0.20960673,103140.0,103130.0,0.62645899]
[1747345338845,0.20960673,103140.0,103130.0,0.6204]
[1747345341214,0.20960673,103140.0,103130.0,0.63009649]
[1747345341636,0.20960673,103140.0,103130.0,0.63615597]
[1747345343082,0.20960673,103140.0,103130.0,0.59425948]
[1747345343297,0.23964758,103140.0,103130.0,0.00705948]
[1747345343504,6.97395678,103140.0,103130.0,0.00491718]
[1747345343715,6.97395678,103140.0,103110.0,0.00014356]
[1747345343716,0.22788385,103120.0,103110.0,0.00014356]
[1747345343930,6.37287084,103120.0,103110.0,0.00014356]
[1747345344142,7.14037577,103120.0,103110.0,0.00014356]
[1747345344810,7.1547955,103120.0,103110.0,0.00014356]
[1747345345441,7.20161059,103120.0,103110.0,0.00014356]
[1747345345850,7.18261059,103120.0,103110.0,0.00014356]
[1747345346308,7.22761059,103120.0,103110.0,0.00114356]
[1747345346516,7.22761059,103120.0,103110.0,0.00014356]
[1747345346733,7.22761059,103120.0,103110.0,0.00114356]
[1747345346734,7.17315501,103120.0,103110.0,0.00114356]
[1747345347665,7.14533992,103120.0,103110.0,0.00114356]
[1747345348477,7.15533992,103120.0,103110.0,0.00114356]
[1747345351180,6.77190191,103120.0,103110.0,0.00114356]
[1747345351394,6.73624684,103120.0,103110.0,0.00114356]
[1747345351604,6.73624684,103120.0,103110.0,0.19511116]
[1747345351605,0.068,103120.0,103110.0,0.19511116]
[1747345351807,0.068,103120.0,103110.0,0.25610516]
[1747345352004,0.068,103120.0,103110.0,1.50953507]
[1747345352235,0.068,103120.0,103110.0,1.8482]
[1747345352484,0.02908506,103140.0,103130.0,0.25491835]
[1747345352690,0.02908506,103140.0,103130.0,0.25491872]
[1747345352880,0.03878043,103140.0,103130.0,0.2452227]
[1747345353199,0.23269161,103140.0,103130.0,0.22582999]
[1747345353508,0.23269161,103140.0,103130.0,0.23552639]
[1747345353509,0.22299681,103140.0,103130.0,0.23552639]
[1747345353708,0.22299681,103140.0,103130.0,0.23552648]
[1747345353930,0.22399681,103140.0,103130.0,0.04159649]
[1747345354126,0.21430182,103140.0,103130.0,0.04159649]
[1747345354640,0.21430182,103140.0,103130.0,0.0319]
[1747345354843,0.21430182,103140.0,103130.0,0.23552648]
[1747345354986,0.21630182,103140.0,103130.0,0.0329]
[1747345355581,0.21630182,103140.0,103130.0,0.4329]
[1747345356007,0.21630182,103140.0,103130.0,0.44259649]
[1747345356175,0.21630182,103140.0,103130.0,0.4329]
[1747345356384,0.20660655,103140.0,103130.0,0.4329]
[1747345361649,0.19691118,103140.0,103130.0,0.4329]
[1747345362503,0.19691118,103140.0,103130.0,0.4169]
[1747345362932,0.83474636,103140.0,103130.0,0.001]
[1747345364709,0.22304024,103120.0,103110.0,0.41644356]
[1747345364945,0.22304024,103120.0,103110.0,0.42614194]
[1747345364946,0.41028024,103120.0,103110.0,0.42614194]
[1747345365148,0.41028024,103120.0,103110.0,0.41644356]
[1747345365354,0.41028024,103120.0,103110.0,0.42614194]
[1747345365580,0.41028024,103120.0,103110.0,0.43584022]
[1747345365773,0.40058337,103120.0,103110.0,0.62980782]
[1747345366027,0.40058337,103120.0,103110.0,0.43584022]
[1747345366196,0.42097758,103120.0,103110.0,0.62980773]
[1747345366543,0.41128071,103120.0,103110.0,0.22010954]
[1747345366829,0.41128071,103120.0,103110.0,0.23950601]
[1747345367043,0.41228071,103120.0,103110.0,0.63950601]
[1747345367244,0.41228071,103120.0,103110.0,0.62980782]
[1747345367522,0.40258356,103120.0,103110.0,0.62980782]
[1747345368486,0.40258356,103120.0,103110.0,0.62010954]
[1747345368923,0.39288622,103120.0,103110.0,0.62010954]
[1747345369865,0.39288622,103120.0,103110.0,0.62980773]
[1747345370193,0.39288622,103120.0,103110.0,0.22980773]
[1747345370397,0.39288622,103120.0,103110.0,0.23950582]
[1747345370601,0.39288622,103120.0,103110.0,0.63950582]
[1747345370985,0.40258337,103120.0,103110.0,0.64920382]
[1747345371286,0.40258337,103120.0,103110.0,0.40014356]
[1747345374527,0.21534337,103120.0,103110.0,0.43164356]
[1747345375364,0.21534337,103120.0,103110.0,0.03164356]
[1747345375949,0.21534337,103120.0,103110.0,0.43164356]
[1747345378962,0.21534337,103120.0,103110.0,0.03164356]
[1747345379498,0.21534337,103120.0,103110.0,0.43770439]
[1747345382419,0.21534337,103120.0,103110.0,0.03770439]
[1747345382832,0.21534337,103120.0,103110.0,0.42260439]
[1747345384450,0.21534337,103120.0,103110.0,0.43760439]
[1747345384659,0.21534337,103120.0,103110.0,0.44730277]
[1747345385486,0.20564622,103120.0,103110.0,0.63157199]
[1747345385686,0.20564622,103120.0,103110.0,0.43760439]
[1747345385847,0.20564622,103120.0,103110.0,0.44730277]
[1747345386192,0.20564622,103120.0,103110.0,0.25096865]
[1747345386404,0.20564622,103120.0,103110.0,0.03760439]
[1747345386593,0.20564622,103120.0,103110.0,0.43760439]
[1747345386753,0.20564622,103120.0,103110.0,0.64127037]
[1747345387833,0.20564622,103120.0,103110.0,0.65096865]
[1747345388966,0.20564622,103120.0,103110.0,0.63596865]
[1747345389593,0.20564622,103120.0,103110.0,0.23596865]
[1747345390220,0.20564622,103120.0,103110.0,0.63596865]
[1747345392259,0.20564622,103120.0,103110.0,0.65136865]
[1747345393109,0.20564622,103120.0,103110.0,0.26106684]
[1747345393518,0.20564622,103120.0,103110.0,0.66106684]
[1747345393883,0.20564594,103120.0,103110.0,0.66106684]
[1747345394083,0.002,103120.0,103110.0,1.01912701]
[1747345394286,0.002,103120.0,103110.0,1.30367641]
[1747345396921,0.002,103120.0,103110.0,2.06122134]
[1747345397142,0.002,103120.0,103110.0,2.40122134]
[1747345397773,0.001,103120.0,103110.0,2.40122134]
[1747345397956,0.002,103120.0,103110.0,2.40422134]
[1747345398127,0.001,103120.0,103110.0,2.40422134]
[1747345398337,0.001,103120.0,103110.0,2.40722134]
[1747345406376,0.001,103120.0,103110.0,2.82492134]
[1747345410773,0.21175404,103160.0,103150.0,0.21328104]
[1747345410994,0.22143438,103160.0,103150.0,0.57133436]
[1747345411200,0.23112787,103160.0,103150.0,0.57739519]
[1747345411407,0.02756079,103160.0,103150.0,1.00949519]
[1747345411618,0.02756069,103160.0,103150.0,1.00949519]
[1747345411828,0.30039684,103170.0,103160.0,0.20356717]
[1747345412040,0.22298917,103170.0,103160.0,0.20356717]
[1747345412479,0.22298917,103170.0,103160.0,0.9422321]
[1747345412689,0.22298917,103170.0,103160.0,0.95192559]
[1747345412919,0.22298917,103170.0,103160.0,0.61326066]
[1747345413136,0.22298917,103170.0,103160.0,0.62295405]
[1747345413354,0.22498917,103170.0,103160.0,0.61326066]
[1747345413574,0.215297,103170.0,103160.0,0.61326066]
[1747345413790,0.215297,103170.0,103160.0,0.62315048]
[1747345413999,0.20560455,103170.0,103160.0,0.61345699]
[1747345414228,0.20960455,103170.0,103160.0,0.61445699]
[1747345414442,0.20960455,103170.0,103160.0,0.62415038]
[1747345414658,0.20960455,103170.0,103160.0,0.61445699]
[1747345414872,0.20960455,103170.0,103160.0,0.62415048]
[1747345415547,0.00604791,103170.0,103160.0,1.17895541]
[1747345415756,0.00604791,103170.0,103160.0,1.19834173]
[1747345415960,0.00604791,103170.0,103160.0,1.54439945]
[1747345416386,0.00204791,103170.0,103160.0,1.54339945]
[1747345416595,4.791e-05,103170.0,103160.0,1.64070832]
[1747345417594,0.00104791,103170.0,103160.0,1.64270832]
[1747345418229,0.00104791,103170.0,103160.0,1.6328185]
[1747345418430,0.00104791,103170.0,103160.0,1.6348185]
[1747345419080,0.00104791,103170.0,103160.0,1.64935935]
[1747345419300,0.00104791,103170.0,103160.0,1.99802428]
[1747345419713,0.00104791,103170.0,103160.0,2.01240446]
[1747345419931,4.791e-05,103170.0,103160.0,2.01040446]
[1747345420151,0.00104791,103170.0,103160.0,2.01740446]
[1747345420363,0.00104791,103170.0,103160.0,1.61740446]
[1747345420575,4.791e-05,103170.0,103160.0,1.61040446]
[1747345420823,4.791e-05,103170.0,103160.0,2.00840446]
[1747345420998,0.00104791,103170.0,103160.0,2.01340446]
[1747345421190,0.00104791,103170.0,103160.0,2.01740446]
[1747345421640,0.02906487,103210.0,103200.0,0.22286706]
[1747345421959,0.02954382,103210.0,103200.0,0.77923199]
[1747345422696,0.0198554,103210.0,103200.0,0.44056706]
[1747345422931,0.02954382,103210.0,103200.0,0.77923199]
[1747345423140,0.03254382,103210.0,103200.0,0.78023199]
[1747345423343,0.03254382,103210.0,103200.0,0.78628694]
[1747345424174,0.03454382,103210.0,103200.0,0.78628694]
[1747345424402,0.0248554,103210.0,103200.0,1.18628694]
[1747345424602,0.0248554,103210.0,103200.0,0.84762201]
[1747345424806,0.0248554,103210.0,103200.0,1.18628694]
[1747345425763,0.0248554,103210.0,103200.0,0.84762201]
[1747345425764,0.04423252,103210.0,103200.0,0.84762201]
[1747345425936,0.04423252,103210.0,103200.0,1.18628694]
[1747345426119,0.05392121,103210.0,103200.0,1.18628694]
[1747345426531,0.05392121,103210.0,103200.0,1.18023199]
[1747345426769,0.05392112,103210.0,103200.0,1.18023199]
[1747345427106,0.05392112,103210.0,103200.0,0.73966493]
[1747345427107,0.21863601,103210.0,103200.0,0.73966493]
[1747345427481,0.21863601,103210.0,103200.0,0.401]
[1747345427695,0.21863601,103210.0,103200.0,0.59479844]
[1747345427696,0.01516755,103210.0,103200.0,0.59479844]
[1747345427896,0.23801293,103210.0,103200.0,0.96253247]
[1747345428097,0.23801293,103210.0,103200.0,0.97222192]
[1747345428292,0.01516727,103210.0,103200.0,0.98191061]
[1747345428470,0.02485578,103210.0,103200.0,0.98191061]
[1747345428672,0.02485578,103210.0,103200.0,1.01391061]
[1747345429081,0.00547904,103210.0,103200.0,1.01391061]
[1747345429268,0.01516717,103210.0,103200.0,1.01391061]
[1747345429642,0.02485549,103210.0,103200.0,1.01391061]
[1747345429842,0.0248554,103210.0,103200.0,1.01391061]
[1747345430038,0.03454372,103210.0,103200.0,1.01391061]
[1747345430304,0.04423223,103210.0,103200.0,1.01391061]
[1747345431654,0.03454372,103210.0,103200.0,1.01391061]
[1747345431880,0.04423223,103210.0,103200.0,1.01391061]
[1747345433372,0.04423223,103210.0,103200.0,1.0199656]
[1747345433789,0.05392093,103210.0,103200.0,1.0199656]
[1747345433990,0.01516717,103210.0,103200.0,1.0199656]
[1747345434213,0.034544,103210.0,103200.0,1.0199656]
[1747345434412,0.01516717,103210.0,103200.0,1.0199656]
[1747345434575,0.03454409,103210.0,103200.0,1.0199656]
[1747345434763,0.02485549,103210.0,103200.0,0.68130067]
[1747345434968,0.04423261,103210.0,103200.0,0.68130067]
[1747345435178,0.05898034,103210.0,103200.0,1.0199656]
[1747345435383,0.05898025,103210.0,103200.0,1.0199656]
[1747345435578,0.058981,103210.0,103200.0,1.00058689]
[1747345435785,0.04929212,103210.0,103200.0,1.01027615]
[1747345436209,0.01053799,103210.0,103200.0,1.01027615]
[1747345436427,0.04929202,103210.0,103200.0,1.01027615]
[1747345436592,0.03960314,103210.0,103200.0,1.00058699]
[1747345436791,0.03960314,103210.0,103200.0,0.67161132]
[1747345437050,0.04929193,103210.0,103200.0,0.67161132]
[1747345437268,0.02991454,103210.0,103200.0,1.01027625]
[1747345437418,0.03960314,103210.0,103200.0,1.01027625]
[1747345437622,0.02022612,103210.0,103200.0,1.01027625]
[1747345437826,0.02991444,103210.0,103200.0,1.01027625]
[1747345438298,0.03960295,103210.0,103200.0,1.01027625]
[1747345439632,0.04929165,103210.0,103200.0,1.01027625]
[1747345439852,0.03960295,103210.0,103200.0,1.01027625]
[1747345440068,0.04929174,103210.0,103200.0,1.01027625]
[1747345440739,0.03960295,103210.0,103200.0,1.01027625]
[1747345441257,0.04929174,103210.0,103200.0,1.01027625]
[1747345441473,0.03960295,103210.0,103200.0,1.01027625]
[1747345441693,0.04929165,103210.0,103200.0,1.01027625]
[1747345441915,0.05898044,103210.0,103200.0,1.01027625]
[1747345442550,0.04929165,103210.0,103200.0,1.01027625]
[1747345442759,0.05898044,103210.0,103200.0,1.01027625]
[1747345442975,0.04929165,103210.0,103200.0,1.01027625]
[1747345443196,0.03960295,103210.0,103200.0,1.01027625]
[1747345443444,0.04929165,103210.0,103200.0,1.01027625]
[1747345443916,0.03960295,103210.0,103200.0,1.01027625]
[1747345444130,0.04929165,103210.0,103200.0,1.01027625]
[1747345444536,0.03960295,103210.0,103200.0,1.01027625]
[1747345444757,0.03960295,103210.0,103200.0,0.67161132]
[1747345445129,0.03960295,103210.0,103200.0,0.85889132]
[1747345446139,0.02991444,103210.0,103200.0,0.85889132]
[1747345446520,0.03960295,103210.0,103200.0,0.85889132]
[1747345447385,0.03960295,103210.0,103200.0,1.08065512]
[1747345448303,0.04862676,103210.0,103200.0,1.08065512]
[1747345450312,0.04862676,103210.0,103200.0,0.85889132]
[1747345450525,0.02924993,103210.0,103200.0,1.08065512]
[1747345450745,0.04862667,103210.0,103200.0,1.08065512]
[1747345451649,0.04862667,103210.0,103200.0,1.09014956]
[1747345452405,0.03893816,103210.0,103200.0,1.09014956]
[1747345452579,0.04862658,103210.0,103200.0,1.09014956]
[1747345453006,0.05831518,103210.0,103200.0,1.09014956]
[1747345453266,0.04862658,103210.0,103200.0,1.09014956]
[1747345454289,0.04862658,103210.0,103200.0,0.86838576]
[1747345454503,0.05831518,103210.0,103200.0,1.09014956]
[1747345454912,0.05831518,103210.0,103200.0,0.86838576]
[1747345455058,0.05831509,103210.0,103200.0,1.09014956]
[1747345455287,0.03893816,103210.0,103200.0,1.09014956]
[1747345459667,0.0195618,103210.0,103200.0,1.09014956]
[1747345459907,0.0195618,103210.0,103200.0,1.31191336]
[1747345460118,0.0195618,103210.0,103200.0,0.96569516]
[1747345460323,0.0195618,103210.0,103200.0,1.18745896]
[1747345460737,0.02925003,103210.0,103200.0,1.18745896]
[1747345460940,0.23271812,103210.0,103200.0,1.1777697]
[1747345461124,0.2520958,103210.0,103200.0,1.16808063]
[1747345461355,0.2520958,103210.0,103200.0,1.17777017]
[1747345461554,0.2520958,103210.0,103200.0,1.18745962]
[1747345461890,0.0195618,103210.0,103200.0,1.19714831]
[1747345462783,0.02924993,103210.0,103200.0,1.19714831]
[1747345463213,0.02924993,103210.0,103200.0,0.97538451]
[1747345463419,0.04862685,103210.0,103200.0,1.19714831]
[1747345463627,0.04862685,103210.0,103200.0,0.97538451]
[1747345463854,0.02991444,103210.0,103200.0,1.19714831]
[1747345464053,0.04929156,103210.0,103200.0,1.19714831]
[1747345464368,0.04929146,103210.0,103200.0,1.19714831]
[1747345465583,0.03960286,103210.0,103200.0,1.19714831]
[1747345469019,0.03960286,103210.0,103200.0,0.97538451]
[1747345469185,0.03960286,103210.0,103200.0,1.19714831]
[1747345469385,0.01053799,103210.0,103200.0,1.19634831]
[1747345472293,0.02022612,103210.0,103200.0,1.19634831]
[1747345472511,0.01053799,103210.0,103200.0,1.19634831]
[1747345472867,0.02022612,103210.0,103200.0,1.19634831]
[1747345473076,0.01053799,103210.0,103200.0,1.19634831]
[1747345473499,0.02022612,103210.0,103200.0,1.19634831]
[1747345473699,0.02991435,103210.0,103200.0,1.19634831]
[1747345473922,0.02022612,103210.0,103200.0,1.19634831]
[1747345474888,0.02991444,103210.0,103200.0,1.19634831]
[1747345475312,0.03960286,103210.0,103200.0,1.19634831]
[1747345475701,0.02991444,103210.0,103200.0,1.19634831]
[1747345477288,0.01053799,103210.0,103200.0,1.19634831]
[1747345477504,0.00547904,103210.0,103200.0,1.41811211]
[1747345477672,0.00547904,103210.0,103200.0,1.75811211]
[1747345478098,0.00547904,103210.0,103200.0,1.94527211]
[1747345478439,0.00347904,103210.0,103200.0,1.94527211]
[1747345478644,0.00347904,103210.0,103200.0,1.94927211]
[1747345479059,0.00047904,103210.0,103200.0,1.94827211]
[1747345479515,0.00147904,103210.0,103200.0,1.95227211]
[1747345479739,0.00147904,103210.0,103200.0,1.50874451]
[1747345480098,0.00147904,103210.0,103200.0,1.95227211]
[1747345482554,0.00147904,103210.0,103200.0,1.95223211]
[1747345483033,0.00147904,103210.0,103200.0,1.57863211]
[1747345483239,0.00147904,103210.0,103200.0,1.95219211]
[1747345491628,0.00147904,103210.0,103200.0,1.09634691]
[1747345491629,0.03054457,103210.0,103200.0,1.09634691]
[1747345491857,0.22432424,103210.0,103200.0,0.74372637]
[1747345492086,0.23073601,103210.0,103200.0,0.42354943]
[1747345492307,0.23073601,103210.0,103200.0,0.23672743]
[1747345492308,0.25132489,103210.0,103200.0,0.23672743]
[1747345492515,0.23942489,103210.0,103200.0,0.23272761]
[1747345492739,0.22973638,103210.0,103200.0,0.41954943]
[1747345492988,0.70295477,103210.0,103200.0,0.01205499]
[1747345493443,0.66374103,103210.0,103200.0,0.004]
[1747345493854,0.47694103,103210.0,103200.0,0.004]
[1747345494086,0.47694103,103210.0,103180.0,0.40605653]
[1747345494087,0.21319829,103190.0,103180.0,0.40605653]
[1747345494308,0.22879829,103190.0,103180.0,0.4]
[1747345494556,0.21319829,103190.0,103180.0,0.40948253]
[1747345495201,0.21319829,103190.0,103180.0,0.41553918]
[1747345496123,0.21319829,103190.0,103180.0,0.41653918]
[1747345496577,0.21319829,103190.0,103180.0,0.01653918]
[1747345496971,0.21319829,103190.0,103180.0,0.41653918]
[1747345499379,0.43057829,103190.0,103180.0,0.40705665]
[1747345500131,0.40367829,103190.0,103180.0,0.00705665]
[1747345500395,0.40367829,103190.0,103180.0,0.001]
[1747345500613,0.40367829,103190.0,103180.0,0.401]
[1747345501899,0.41907829,103190.0,103180.0,0.401]
[1747345502117,0.40367829,103190.0,103180.0,0.401]
[1747345506545,0.40367829,103190.0,103180.0,0.001]
[1747345507500,0.3939879,103190.0,103180.0,0.001]
[1747345507710,0.21319829,103190.0,103180.0,0.19483601]
[1747345507911,0.40279829,103190.0,103180.0,0.016]
[1747345508063,0.40279829,103190.0,103180.0,0.22925332]
[1747345508281,0.40279829,103190.0,103180.0,0.0315]
[1747345508481,0.23257906,103190.0,103180.0,0.22533601]
[1747345508649,0.23257906,103190.0,103180.0,0.23502771]
[1747345508850,0.22288895,103190.0,103180.0,0.0315]
[1747345509053,0.21319866,103190.0,103180.0,0.0315]
[1747345509613,0.21319735,103190.0,103180.0,0.25441018]
[1747345509818,0.22288849,103190.0,103180.0,0.21952771]
[1747345510020,0.21319829,103190.0,103180.0,0.016]
[1747345510170,0.2035079,103190.0,103180.0,0.001]
[1747345512047,0.2035079,103190.0,103180.0,0.19483601]
[1747345512243,0.21319847,103190.0,103180.0,0.0171]
[1747345512579,0.21319809,103190.0,103180.0,0.23031895]
[1747345512789,0.22288895,103190.0,103180.0,0.22062762]
[1747345513243,0.22288895,103190.0,103180.0,0.001]
[1747345513244,0.40599866,103190.0,103180.0,0.001]
[1747345514070,0.20352762,103180.0,103170.0,0.4326]
[1747345514227,0.21321913,103180.0,103170.0,0.4326]
[1747345514630,0.21321913,103180.0,103170.0,0.4483499]
[1747345515625,0.21321913,103180.0,103170.0,0.43865716]
[1747345515924,0.21321913,103180.0,103170.0,0.4]
[1747345516274,0.21321913,103180.0,103170.0,0.001]
[1747345516931,0.21323943,103170.0,103160.0,0.61996707]
[1747345517139,0.21323943,103170.0,103160.0,0.63526707]
[1747345517348,0.21323943,103170.0,103160.0,0.6413248]
[1747345517751,0.23262405,103170.0,103160.0,0.6413248]
[1747345517915,0.23262405,103170.0,103160.0,0.65101829]
[1747345519526,0.23262405,103170.0,103160.0,0.65201829]
[1747345519680,0.23262405,103170.0,103160.0,0.25201829]
[1747345520077,0.23262405,103170.0,103160.0,0.65201829]
[1747345520691,0.23262405,103170.0,103160.0,0.25201829]
[1747345521319,0.23262405,103170.0,103160.0,0.65201829]
[1747345521882,0.23262405,103170.0,103160.0,0.66171168]
[1747345522031,0.23262405,103170.0,103160.0,0.6423248]
[1747345522238,0.23262405,103170.0,103160.0,0.65201829]
[1747345523453,0.23262405,103170.0,103160.0,0.66171168]
[1747345523652,0.23262405,103170.0,103160.0,0.65201829]
[1747345524286,0.23262405,103170.0,103160.0,0.26171168]
[1747345524832,0.23262405,103170.0,103160.0,0.66171168]
[1747345526569,0.23262405,103170.0,103160.0,0.65201829]
[1747345527204,0.23262405,103170.0,103160.0,0.66171168]
[1747345527720,0.23262405,103170.0,103160.0,0.65201829]
[1747345527926,0.23262405,103170.0,103160.0,0.25201829]
[1747345528061,0.22293216,103170.0,103160.0,0.2423248]
[1747345528268,0.22293216,103170.0,103160.0,0.65201819]
[1747345528472,0.22293216,103170.0,103160.0,0.65201829]
[1747345528671,0.22293216,103170.0,103160.0,0.66171168]
[1747345530389,0.22293216,103170.0,103160.0,0.43875773]
[1747345530590,0.25511681,103170.0,103160.0,0.00705773]
[1747345530791,0.40615999,103170.0,103160.0,0.00705773]
[1747345531569,0.76687404,103170.0,103160.0,0.00705773]
[1747345531776,0.76687404,103170.0,103160.0,0.00605773]
[1747345532007,0.21328095,103150.0,103140.0,0.0316]
[1747345532246,0.21328095,103150.0,103140.0,0.43770674]
[1747345533455,0.21328095,103150.0,103140.0,0.43870674]
[1747345534838,0.21328095,103150.0,103140.0,0.42300674]
[1747345535176,0.21328095,103150.0,103140.0,0.03820674]
[1747345535519,0.21328095,103150.0,103140.0,0.43820674]
[1747345535721,0.20358681,103150.0,103140.0,0.43820674]
[1747345536726,0.15358681,103150.0,103140.0,0.43820674]
[1747345536950,0.16328124,103150.0,103140.0,0.43820674]
[1747345539052,0.19387359,103160.0,103150.0,0.05178876]
[1747345539252,0.42524603,103160.0,103150.0,0.0324]
[1747345539435,0.21325971,103160.0,103150.0,0.22629238]
[1747345539638,0.2229532,103160.0,103150.0,0.03845881]
[1747345539858,0.21323924,103170.0,103160.0,0.20356717]
[1747345540051,0.45463829,103190.0,103170.0,0.05178472]
[1747345540256,0.41575027,103180.0,103170.0,0.0324]
[1747345540574,0.40605913,103180.0,103170.0,0.0324]
[1747345541194,0.39636771,103180.0,103170.0,0.0324]
[1747345541619,0.38667601,103180.0,103170.0,0.03845763]
[1747345541830,0.38967601,103180.0,103170.0,0.03945763]
[1747345542222,0.38967601,103180.0,103170.0,0.0334]
[1747345542989,0.38967601,103180.0,103170.0,0.03945767]
[1747345543215,0.39267601,103180.0,103170.0,0.03945767]
[1747345543416,0.19983601,103180.0,103170.0,0.03945767]
[1747345543903,0.39311601,103180.0,103170.0,0.03945767]
[1747345544105,0.39311601,103180.0,103170.0,0.43945767]
[1747345545949,0.19983601,103180.0,103170.0,0.46853475]
[1747345546179,0.006,103180.0,103170.0,0.66238955]
[1747345546382,0.01569095,103180.0,103170.0,0.66238955]
[1747345546586,0.01569104,103180.0,103170.0,0.66238955]
[1747345546753,0.01569095,103180.0,103170.0,0.66238955]
[1747345546960,0.23860084,103180.0,103170.0,0.66238974]
[1747345547195,0.22890923,103180.0,103170.0,0.66238955]
[1747345547355,0.23860056,103180.0,103170.0,0.25269756]
[1747345547572,0.24829207,103180.0,103170.0,0.27208219]
[1747345547775,0.22891055,103180.0,103170.0,0.43945767]
[1747345547943,0.21921922,103180.0,103170.0,0.43945767]
[1747345556788,0.006,103180.0,103170.0,0.63331247]
[1747345557006,0.22891018,103180.0,103170.0,0.65269747]
[1747345557219,0.23860198,103180.0,103170.0,0.63331247]
[1747345557439,0.23860198,103180.0,103170.0,0.43945767]
[1747345557633,0.23860198,103180.0,103170.0,0.64300502]
[1747345557856,0.23860198,103180.0,103170.0,0.64300511]
[1747345558090,0.21921942,103180.0,103170.0,0.63331247]
[1747345558315,0.21921942,103180.0,103170.0,0.43945767]
[1747345561147,0.20952781,103180.0,103170.0,0.43945767]
[1747345562813,0.20952781,103180.0,103170.0,0.63331247]
[1747345562983,0.22891055,103180.0,103170.0,0.43945767]
[1747345563153,0.21921932,103180.0,103170.0,0.43945767]
[1747345564410,0.21921932,103180.0,103170.0,0.44915041]
[1747345564693,0.21921932,103180.0,103170.0,0.43945767]
[1747345565037,0.21921932,103180.0,103170.0,0.44915041]
[1747345565521,0.21921932,103180.0,103170.0,0.64300521]
[1747345565742,0.21921932,103180.0,103170.0,0.65269785]
[1747345569267,0.21921932,103180.0,103170.0,0.64300521]
[1747345569467,0.21921932,103180.0,103170.0,0.65269785]
[1747345569674,0.21921932,103180.0,103170.0,0.43945767]
[1747345570031,0.21921932,103180.0,103170.0,0.44915041]
[1747345570864,0.21921932,103180.0,103170.0,0.43945767]
[1747345571255,0.21921932,103180.0,103170.0,0.44915041]
[1747345572701,0.21921932,103180.0,103170.0,0.45884305]